fUST/lending_fUST_20260604
["ID","MTS","AMOUNT","RATE_DAILY","PERIOD"]
[423994416,1780549845000,-4845.706072,0.00019178,2]
[423994409,1780549845000,-1693.52995991,0.00019178,2]
[423994420,1780549845000,-2067.99251587,0.00019178,2]
[423994422,1780549845000,-4845.706072,0.00019178,2]
[423994418,1780549845000,-2777.71355613,0.00019178,2]
[423994412,1780549845000,-3152.17611209,0.00019178,2]
[423994428,1780549845000,-4845.706072,0.00019178,2]
[423994424,1780549845000,-4845.706072,0.00019178,2]
[423994426,1780549845000,-4845.706072,0.00019178,2]
[423994405,1780549845000,-3773.54848182,0.00019178,2]
[423994442,1780549845000,-4845.706072,0.00019178,2]
[423994434,1780549845000,-4845.706072,0.00019178,2]
[423994432,1780549845000,-4845.706072,0.00019178,2]
[423994436,1780549845000,-4845.706072,0.00019178,2]
[423994450,1780549845000,-4845.706072,0.00019178,2]
[423994444,1780549845000,-4845.706072,0.00019178,2]
[423994446,1780549845000,-4845.706072,0.00019178,2]
[423994448,1780549845000,-4845.706072,0.00019178,2]
[423994452,1780549845000,-4845.7060653,0.00019178,2]
[423994454,1780549845000,-151.0,0.00019178,2]
[423994458,1780549845000,-160.294576,0.00019178,2]
[423994460,1780549845000,-2206.0,0.00019436,2]
[423994430,1780549845000,-4845.706072,0.00019178,2]
[423994403,1780549845000,-4223.18528219,0.00019178,2]
[423994414,1780549845000,-4845.706072,0.00019178,2]
[423994401,1780549845000,-622.52078981,0.00019178,2]
[423994323,1780549845000,-157.749588,0.00018965,2]
[423994325,1780549845000,-157.74958074,0.00018965,2]
[423994456,1780549845000,-152.393885,0.00019178,2]
[423994329,1780549845000,-183.997525,0.00018982,2]
[423994333,1780549845000,-155.0,0.00019,2]
[423994339,1780549845000,-4591.98,0.0001911,2]
[423994327,1780549845000,-72263.21589738,0.00018965,2]
[423994342,1780549845000,-4591.98,0.0001911,2]
[423994399,1780549845000,-169.601365,0.00019178,2]
[423994331,1780549845000,-4609.68745008,0.00019,2]
[423994344,1780549845000,-3485.25852666,0.0001911,2]
[423994335,1780549845000,-4591.98,0.0001911,2]
[423994337,1780549845000,-4591.98,0.0001911,2]
[423994351,1780549845000,-2319.53642472,0.0001911,2]
[423994397,1780549845000,-300.0,0.00019178,2]
[423994347,1780549845000,-1106.72147334,0.0001911,2]
[423994384,1780549845000,-300.40512829,0.00019112,2]
[423994382,1780549845000,-2817.46051938,0.0001911,2]
[423994386,1780549845000,-869.88701225,0.00019139,2]
[423994395,1780549845000,-224.15699645,0.00019178,2]
[423994380,1780549845000,-1774.49948062,0.0001911,2]
[423994388,1780549845000,-3367.02734008,0.00019178,2]
[423994392,1780549845000,-887.48300355,0.00019178,2]
[423994377,1780549845000,-4591.98,0.0001911,2]
[423994375,1780549845000,-2272.44357528,0.0001911,2]
[423994390,1780549845000,-799.63265992,0.00019178,2]
[423994462,1780549846000,-3631.0,0.00019436,2]
[423994466,1780549846000,-1111.64,0.00019452,2]
[423994464,1780549846000,-4166.66,0.00019452,2]
[423994468,1780549846000,-829.0,0.00019586,2]
[423994471,1780549846000,-422.406439,0.0001971,2]
[423994472,1780549846000,-183.131921,0.0001971,2]
[423994475,1780549846000,-161.722915,0.0001971,2]
[423994476,1780549846000,-179.090313,0.0001971,2]
[423994478,1780549846000,-4166.66,0.00019726,2]
[423994480,1780549846000,-1111.64,0.00019726,2]
[423994490,1780549846000,-64259.70615972,0.00019943,2]
[423994482,1780549846000,-244.025064,0.00019747,2]
[423994486,1780549846000,-169.3599,0.00019861,2]
[423994484,1780549846000,-176.574973,0.00019861,2]
[423994516,1780549846000,-286.67532254,0.00013596,2]
[423994518,1780549846000,-1491.29130153,0.00019943,2]
[423994535,1780549846000,-8868.53363026,0.00019943,2]
[423994525,1780549846000,-3263.2736333,0.00019943,2]
[423994533,1780549846000,-4010.58805128,0.00018464,2]
[423994488,1780549846000,-437.844341,0.00019932,2]
[423995327,1780550414000,626.39133979,0.00022323,120]
[423995427,1780551032000,-300.0,0.00010199,2]
[423995424,1780551032000,-300.0,0.00010199,2]
[423995429,1780551032000,-300.0,0.00010199,2]
[423995422,1780551032000,-300.0,0.00010199,2]
[423995412,1780551032000,-2176.77644234,0.0001,2]
[423995416,1780551032000,-300.0,0.00010199,2]
[423995414,1780551032000,-1320.0701101,0.0001,2]
[423995420,1780551032000,-300.0,0.00010199,2]
[423995418,1780551032000,-300.0,0.00010199,2]
[423995431,1780551032000,-300.0,0.00010199,2]
[423995408,1780551032000,-5000.0,9.228e-05,2]
[423995406,1780551032000,-2267.97541564,9.136e-05,2]
[423995410,1780551032000,-5000.0,9.321e-05,2]
[423995433,1780551032000,-300.0,0.00010199,2]
[423995425,1780551032000,-300.0,0.00010199,2]
[423995439,1780551032000,-300.0,0.00010199,2]
[423995463,1780551032000,-12317.81720639,0.00013598,2]
[423995460,1780551032000,-48.59295621,0.00013598,2]
[423995459,1780551032000,-4009.74747251,0.00013598,2]
[423995456,1780551032000,-176.98880408,0.00013597,2]
[423995435,1780551032000,-300.0,0.00010199,2]
[423995452,1780551032000,-519.41311088,0.00013597,2]
[423995454,1780551032000,-500.0,0.00013597,2]
[423995449,1780551032000,-1651.3295502,0.0001224,2]
[423995447,1780551032000,-406.99855918,0.0001111,7]
[423995445,1780551032000,-271.33237278,0.00010493,7]
[423995443,1780551032000,-300.0,0.00010199,2]
[423995437,1780551032000,-300.0,0.00010199,2]
[423995441,1780551032000,-300.0,0.00010199,2]
[423995451,1780551032000,-2583.27950441,0.00013498,2]
[423995519,1780551038000,-433.06415365,0.00013598,2]
[423995568,1780551044000,-2032.61509904,0.00013598,2]
[423995601,1780551046000,-368.1946,0.00013598,2]
[423995603,1780551046000,-6460.87210653,0.00013598,2]
[423995626,1780551046000,-1865.79998992,0.00013598,2]
[423995628,1780551046000,-9563.73032273,0.00013598,2]
[423995619,1780551046000,-153992.97217585,0.00013598,2]
[423995765,1780551110000,-3249.93263484,0.00013327,2]
[424011120,1780552122000,385.250001,0.00023628,120]
[424011882,1780552232000,-137.19294531,0.00012051,2]
[424011880,1780552232000,-328.28179684,0.00011931,2]
[424011869,1780552232000,-3565.81870675,0.00011931,2]
[424011878,1780552232000,-697.03980434,0.00011931,2]
[424011876,1780552232000,-408.85969207,0.00011931,2]
[424012032,1780552239000,-300.0,0.00012999,2]
[424012030,1780552239000,-1062.80705469,0.00012051,2]
[424012031,1780552239000,-3249.93263484,0.00012052,2]
[424012033,1780552239000,-454.23393942,0.00013,2]
[424012034,1780552239000,-165.101,0.00013325,2]
[424012035,1780552239000,-473.89216286,0.00013497,2]
[424012039,1780552239000,-500.0,0.00013497,2]
[424012038,1780552239000,-500.0,0.00013497,2]
[424012043,1780552239000,-4026.95337907,0.00013498,2]
[424012036,1780552239000,-454.37363387,0.00013497,2]
[424012040,1780552239000,-640.73290951,0.00013497,2]
[424012041,1780552239000,-2290.58684197,0.00013498,2]
[424012042,1780552239000,-3608.77272534,0.00013498,2]
[424012037,1780552239000,-500.0,0.00013497,2]
[424012074,1780552243000,-3428.19821707,0.0001193,2]
[424012075,1780552243000,-1068.60977253,0.0001193,2]
[424012076,1780552244000,-503.1920104,0.0001193,2]
[424012078,1780552244000,-27776.73195826,0.00013498,2]
[424012079,1780552244000,-3215.89712044,0.00013498,2]
[424012077,1780552244000,-167.0,0.0001276,2]
[424012081,1780552244000,-2292.89147835,0.00013498,2]
[424012082,1780552244000,-13968.27331962,0.00013498,2]
[424012084,1780552244000,-11254.0,0.00013498,2]
[424012083,1780552244000,-1164.14458316,0.00013498,2]
[424012080,1780552244000,-760.86230765,0.00013498,2]
[424012119,1780552246000,-30636.2481402,0.00013498,2]
[424012118,1780552246000,-3775.0,0.00013498,2]
[424012117,1780552246000,-18717.05941191,0.00013498,2]
[424012115,1780552246000,-10695.5512453,0.00013498,2]
[424014020,1780552911000,-478.99683408,0.00012454,2]
[424014024,1780552928000,-5000.0,0.0001258,2]
[424014025,1780552945000,-291.387,0.00013228,2]
[424014026,1780552962000,-1200.0,0.00013286,2]
[424014027,1780552979000,-1200.0,0.00013287,2]
[424014089,1780553432000,-4034.68875337,0.00012397,2]
[424014210,1780553439000,-300.0,0.00013197,2]
[424014193,1780553439000,-403.69301556,0.00013197,2]
[424014191,1780553439000,-232.9978545,0.00012649,2]
[424014189,1780553439000,-965.31124663,0.00012397,2]
[424014207,1780553439000,-796.30698444,0.00013197,2]
[424014222,1780553439000,-44102.93625748,0.00013198,2]
[424014212,1780553439000,-331.724514,0.00013197,2]
[424014216,1780553439000,-502.14722569,0.00013197,2]
[424014214,1780553439000,-457.79801789,0.00013197,2]
[424014224,1780553439000,-272.1750197,0.00013198,2]
[424014220,1780553439000,-2923.86707462,0.00013198,2]
[424014217,1780553439000,-51769.40424125,0.00013198,2]
[424014226,1780553439000,-31340.21351801,0.00013198,2]
[424014342,1780553444000,-1034578.92473572,0.00013198,2]
[424014340,1780553444000,-4343.67114149,0.00013198,2]
[424014341,1780553444000,-398.77670356,0.00013198,2]
[424014339,1780553444000,-4574.14783359,0.00013198,2]
[424014337,1780553444000,-152.0,0.00011111,7]
[424014338,1780553444000,-10108.76468092,0.00013198,2]
[424014349,1780553446000,-12344.80023187,0.00013198,2]
[424014350,1780553448000,-17138.66813076,0.00013198,2]
[424014351,1780553448000,-6494.64984453,0.00013198,2]
[424021290,1780554232000,5000.0,0.000236,120]
[424024324,1780554631000,-152.0,0.00011111,7]
[424024312,1780554631000,-5000.0,9.913e-05,2]
[424024311,1780554631000,-676.343852,9.814e-05,2]
[424024318,1780554631000,-259.70772219,0.00010322,2]
[424024315,1780554631000,-5000.0,0.00010013,2]
[424024313,1780554631000,-1200.0,0.00010012,2]
[424024316,1780554631000,-151.0,0.00010114,2]
[424024317,1780554631000,-40.29227781,0.00010322,2]
[424024320,1780554631000,-626.9028985,0.00010425,2]
[424024323,1780554631000,-160.0,0.00011013,2]
[424024322,1780554631000,-3835.0,0.00011,2]
[424024319,1780554631000,-300.0,0.00010322,2]
[424024326,1780554631000,-300.0,0.00011295,2]
[424024337,1780554631000,-300.0,0.00011295,2]
[424024335,1780554631000,-300.0,0.00011295,2]
[424024336,1780554631000,-300.0,0.00011295,2]
[424024334,1780554631000,-300.0,0.00011295,2]
[424024331,1780554631000,-300.0,0.00011295,2]
[424024338,1780554631000,-300.0,0.00011295,2]
[424024330,1780554631000,-300.0,0.00011295,2]
[424024328,1780554631000,-300.0,0.00011295,2]
[424024327,1780554631000,-300.0,0.00011295,2]
[424024325,1780554631000,-300.0,0.00011295,2]
[424024333,1780554631000,-300.0,0.00011295,2]
[424024341,1780554632000,-300.0,0.00011295,2]
[424024344,1780554632000,-351.5551748,0.00011887,2]
[424024343,1780554632000,-172.107495,0.00011491,2]
[424024345,1780554632000,-505.84559567,0.00011999,2]
[424024339,1780554632000,-300.0,0.00011295,2]
[424024342,1780554632000,-300.0,0.00011295,2]
[424024349,1780554632000,-2393.59145367,0.00012,2]
[424024350,1780554632000,-513.00241066,0.00012,2]
[424024351,1780554632000,-1905.92221814,0.00012,2]
[424024347,1780554632000,-150.37,0.00012,2]
[424024346,1780554632000,-269.663,0.00011999,2]
[424024352,1780554632000,-464.61095909,0.00012,2]
[424024493,1780554638000,-151.0,0.00013,2]
[424024491,1780554638000,-151.0,0.00013,2]
[424024492,1780554638000,-151.0,0.00013,2]
[424024508,1780554638000,-3955.58347916,0.00013211,2]
[424024502,1780554638000,-151.0,0.000131,2]
[424024504,1780554638000,-151.0,0.000131,2]
[424024510,1780554638000,-644.2144984,0.00013211,2]
[424024511,1780554638000,-5080.970398,0.00013211,2]
[424024524,1780554638000,-407.82661568,0.00013698,2]
[424024499,1780554638000,-151.0,0.000131,2]
[424024501,1780554638000,-151.0,0.000131,2]
[424024512,1780554638000,-168.56857667,0.00013233,14]
[424024500,1780554638000,-151.0,0.000131,2]
[424024509,1780554638000,-4805.55839454,0.00013211,2]
[424024507,1780554638000,-1022.3222849,0.00013211,2]
[424024505,1780554638000,-720.0,0.00013201,2]
[424024526,1780554638000,-502.72837801,0.00013698,2]
[424024525,1780554638000,-500.0,0.00013698,2]
[424024495,1780554638000,-151.0,0.00013,2]
[424024503,1780554638000,-151.0,0.000131,2]
[424024497,1780554638000,-151.0,0.000131,2]
[424024478,1780554638000,-151.5,0.00012826,2]
[424024496,1780554638000,-151.0,0.00013,2]
[424024527,1780554638000,-517.9108746,0.00013698,2]
[424024467,1780554638000,-55591.09092718,0.00012,2]
[424024470,1780554638000,-600.0,0.00012001,2]
[424024471,1780554638000,-11813.82764956,0.000125,2]
[424024469,1780554638000,-150.37,0.00012,2]
[424024472,1780554638000,-18117.21769194,0.000125,2]
[424024473,1780554638000,-168.56857667,0.00012603,2]
[424024483,1780554638000,-156.46975,0.00012998,2]
[424024481,1780554638000,-168.56857667,0.00012855,7]
[424024494,1780554638000,-151.0,0.00013,2]
[424024475,1780554638000,-151.5,0.00012826,2]
[424024477,1780554638000,-151.5,0.00012826,2]
[424024474,1780554638000,-151.5,0.00012826,2]
[424024482,1780554638000,-3247.89545277,0.000129,2]
[424024479,1780554638000,-151.5,0.00012826,2]
[424024485,1780554638000,-15022.53255169,0.00013,2]
[424024480,1780554638000,-228.55817679,0.00012826,2]
[424024487,1780554638000,-11388.50615705,0.00013,2]
[424024488,1780554638000,-151.0,0.00013,2]
[424024490,1780554638000,-151.0,0.00013,2]
[424024486,1780554638000,-89366.3242859,0.00013,2]
[424024516,1780554638000,-620.68813596,0.00013698,2]
[424024533,1780554638000,-500.0,0.00013698,2]
[424024517,1780554638000,-503.58362914,0.00013698,2]
[424024549,1780554638000,-416.81890381,0.00013698,2]
[424024552,1780554638000,-500.0,0.00013698,2]
[424024548,1780554638000,-500.0,0.00013698,2]
[424024550,1780554638000,-500.0,0.00013698,2]
[424024551,1780554638000,-500.0,0.00013698,2]
[424024553,1780554638000,-474.08587618,0.00013698,2]
[424024554,1780554638000,-500.0,0.00013698,2]
[424024558,1780554638000,-500.0,0.00013698,2]
[424024562,1780554638000,-500.0,0.00013698,2]
[424024561,1780554638000,-500.0,0.00013698,2]
[424024560,1780554638000,-500.0,0.00013698,2]
[424024563,1780554638000,-501.41523911,0.00013698,2]
[424024569,1780554638000,-500.0,0.00013698,2]
[424024565,1780554638000,-500.0,0.00013698,2]
[424024564,1780554638000,-501.35586779,0.00013698,2]
[424024566,1780554638000,-391.72350453,0.00013698,2]
[424024571,1780554638000,-501.68347379,0.00013698,2]
[424024570,1780554638000,-500.0,0.00013698,2]
[424024513,1780554638000,-500.0,0.00013698,2]
[424024544,1780554638000,-500.0,0.00013698,2]
[424024546,1780554638000,-500.0,0.00013698,2]
[424024567,1780554638000,-500.0,0.00013698,2]
[424024557,1780554638000,-500.0,0.00013698,2]
[424024520,1780554638000,-500.0,0.00013698,2]
[424024556,1780554638000,-500.0,0.00013698,2]
[424024515,1780554638000,-500.0,0.00013698,2]
[424024519,1780554638000,-503.80126453,0.00013698,2]
[424024521,1780554638000,-500.0,0.00013698,2]
[424024518,1780554638000,-500.0,0.00013698,2]
[424024528,1780554638000,-500.0,0.00013698,2]
[424024529,1780554638000,-500.0,0.00013698,2]
[424024531,1780554638000,-500.0,0.00013698,2]
[424024532,1780554638000,-500.0,0.00013698,2]
[424024522,1780554638000,-500.0,0.00013698,2]
[424024536,1780554638000,-500.0,0.00013698,2]
[424024538,1780554638000,-500.0,0.00013698,2]
[424024534,1780554638000,-500.0,0.00013698,2]
[424024541,1780554638000,-500.0,0.00013698,2]
[424024540,1780554638000,-500.0,0.00013698,2]
[424024537,1780554638000,-334.21920539,0.00013698,2]
[424024542,1780554638000,-500.0,0.00013698,2]
[424024545,1780554638000,-500.0,0.00013698,2]
[424024535,1780554638000,-500.0,0.00013698,2]
[424024543,1780554638000,-500.0,0.00013698,2]
[424024625,1780554639000,-1313.5209,0.00013698,2]
[424024617,1780554639000,-500.0,0.00013698,2]
[424024628,1780554639000,-500.0,0.00013698,2]
[424024629,1780554639000,-500.0,0.00013698,2]
[424024619,1780554639000,-500.0,0.00013698,2]
[424024614,1780554639000,-500.0,0.00013698,2]
[424024616,1780554639000,-500.0,0.00013698,2]
[424024609,1780554639000,-830.97,0.00013698,2]
[424024607,1780554639000,-830.97,0.00013698,2]
[424024613,1780554639000,-831.05107904,0.00013698,2]
[424024627,1780554639000,-500.0,0.00013698,2]
[424024610,1780554639000,-830.97,0.00013698,2]
[424024618,1780554639000,-500.0,0.00013698,2]
[424024626,1780554639000,-513.26498698,0.00013698,2]
[424024643,1780554639000,-681.01,0.00013698,2]
[424024623,1780554639000,-500.0,0.00013698,2]
[424024620,1780554639000,-500.0,0.00013698,2]
[424024624,1780554639000,-263.54,0.00013698,2]
[424024639,1780554639000,-681.01,0.00013698,2]
[424024644,1780554639000,-681.01,0.00013698,2]
[424024641,1780554639000,-681.01,0.00013698,2]
[424024636,1780554639000,-681.01,0.00013698,2]
[424024637,1780554639000,-681.01,0.00013698,2]
[424024638,1780554639000,-681.01,0.00013698,2]
[424024642,1780554639000,-681.01,0.00013698,2]
[424024630,1780554639000,-681.01,0.00013698,2]
[424024634,1780554639000,-681.01,0.00013698,2]
[424024606,1780554639000,-830.97,0.00013698,2]
[424024621,1780554639000,-500.0,0.00013698,2]
[424024611,1780554639000,-830.97,0.00013698,2]
[424024576,1780554639000,-500.0,0.00013698,2]
[424024612,1780554639000,-830.97,0.00013698,2]
[424024573,1780554639000,-500.0,0.00013698,2]
[424024583,1780554639000,-500.0,0.00013698,2]
[424024585,1780554639000,-500.0,0.00013698,2]
[424024574,1780554639000,-500.0,0.00013698,2]
[424024586,1780554639000,-830.97,0.00013698,2]
[424024572,1780554639000,-539.56323445,0.00013698,2]
[424024587,1780554639000,-830.97,0.00013698,2]
[424024582,1780554639000,-500.0,0.00013698,2]
[424024577,1780554639000,-500.0,0.00013698,2]
[424024580,1780554639000,-500.0,0.00013698,2]
[424024578,1780554639000,-500.0,0.00013698,2]
[424024581,1780554639000,-500.0,0.00013698,2]
[424024579,1780554639000,-500.0,0.00013698,2]
[424024605,1780554639000,-830.97,0.00013698,2]
[424024589,1780554639000,-282.27763825,0.00013698,2]
[424024603,1780554639000,-830.97,0.00013698,2]
[424024594,1780554639000,-830.97,0.00013698,2]
[424024601,1780554639000,-830.97,0.00013698,2]
[424024600,1780554639000,-830.97,0.00013698,2]
[424024593,1780554639000,-830.97,0.00013698,2]
[424024590,1780554639000,-830.97,0.00013698,2]
[424024588,1780554639000,-548.69236175,0.00013698,2]
[424024592,1780554639000,-830.97,0.00013698,2]
[424024596,1780554639000,-830.97,0.00013698,2]
[424024598,1780554639000,-830.97,0.00013698,2]
[424024595,1780554639000,-830.97,0.00013698,2]
[424024597,1780554639000,-830.97,0.00013698,2]
[424024604,1780554639000,-830.97,0.00013698,2]
[424024602,1780554639000,-830.97,0.00013698,2]
[424024632,1780554639000,-681.01,0.00013698,2]
[424024645,1780554639000,-681.01,0.00013698,2]
[424024633,1780554639000,-681.01,0.00013698,2]
[424024678,1780554639000,-500.0,0.00013698,2]
[424024687,1780554639000,-500.0,0.00013698,2]
[424024682,1780554639000,-500.0,0.00013698,2]
[424024686,1780554639000,-500.0,0.00013698,2]
[424024689,1780554639000,-500.0,0.00013698,2]
[424024688,1780554639000,-500.0,0.00013698,2]
[424024691,1780554639000,-505.76909894,0.00013698,2]
[424024690,1780554639000,-486.30509291,0.00013698,2]
[424024703,1780554639000,-500.0,0.00013698,2]
[424024704,1780554639000,-500.0,0.00013698,2]
[424024692,1780554639000,-500.0,0.00013698,2]
[424024700,1780554639000,-500.0,0.00013698,2]
[424024696,1780554639000,-500.0,0.00013698,2]
[424024701,1780554639000,-500.0,0.00013698,2]
[424024705,1780554639000,-500.0,0.00013698,2]
[424024695,1780554639000,-500.0,0.00013698,2]
[424024694,1780554639000,-500.0,0.00013698,2]
[424024706,1780554639000,-500.0,0.00013698,2]
[424024699,1780554639000,-502.54444321,0.00013698,2]
[424024707,1780554639000,-500.0,0.00013698,2]
[424024697,1780554639000,-500.0,0.00013698,2]
[424024698,1780554639000,-500.0,0.00013698,2]
[424024708,1780554639000,-500.0,0.00013698,2]
[424024709,1780554639000,-500.0,0.00013698,2]
[424024710,1780554639000,-500.0,0.00013698,2]
[424024715,1780554639000,-500.0,0.00013698,2]
[424024713,1780554639000,-500.0,0.00013698,2]
[424024714,1780554639000,-501.2303141,0.00013698,2]
[424024635,1780554639000,-681.01,0.00013698,2]
[424024683,1780554639000,-500.0,0.00013698,2]
[424024684,1780554639000,-500.0,0.00013698,2]
[424024712,1780554639000,-502.54947451,0.00013698,2]
[424024680,1780554639000,-515.38507873,0.00013698,2]
[424024681,1780554639000,-500.0,0.00013698,2]
[424024646,1780554639000,-681.01,0.00013698,2]
[424024650,1780554639000,-681.01,0.00013698,2]
[424024648,1780554639000,-681.01,0.00013698,2]
[424024652,1780554639000,-681.01,0.00013698,2]
[424024651,1780554639000,-681.01,0.00013698,2]
[424024653,1780554639000,-681.01,0.00013698,2]
[424024655,1780554639000,-681.01,0.00013698,2]
[424024659,1780554639000,-500.0,0.00013698,2]
[424024654,1780554639000,-681.01,0.00013698,2]
[424024657,1780554639000,-500.0,0.00013698,2]
[424024660,1780554639000,-502.28551429,0.00013698,2]
[424024656,1780554639000,-681.21292152,0.00013698,2]
[424024661,1780554639000,-501.98831029,0.00013698,2]
[424024647,1780554639000,-681.01,0.00013698,2]
[424024670,1780554639000,-500.0,0.00013698,2]
[424024669,1780554639000,-500.0,0.00013698,2]
[424024677,1780554639000,-500.0,0.00013698,2]
[424024672,1780554639000,-500.0,0.00013698,2]
[424024671,1780554639000,-162.50727781,0.00013698,2]
[424024675,1780554639000,-500.0,0.00013698,2]
[424024674,1780554639000,-500.0,0.00013698,2]
[424024666,1780554639000,-500.0,0.00013698,2]
[424024679,1780554639000,-500.0,0.00013698,2]
[424024668,1780554639000,-500.0,0.00013698,2]
[424024665,1780554639000,-500.0,0.00013698,2]
[424024662,1780554639000,-500.0,0.00013698,2]
[424024664,1780554639000,-500.0,0.00013698,2]
[424024673,1780554639000,-500.0,0.00013698,2]
[424024663,1780554639000,-500.0,0.00013698,2]
[424024758,1780554640000,-500.0,0.00013698,2]
[424024755,1780554640000,-500.0,0.00013698,2]
[424024757,1780554640000,-500.0,0.00013698,2]
[424024760,1780554640000,-500.0,0.00013698,2]
[424024747,1780554640000,-500.0,0.00013698,2]
[424024754,1780554640000,-500.0,0.00013698,2]
[424024751,1780554640000,-503.07946886,0.00013698,2]
[424024763,1780554640000,-500.0,0.00013698,2]
[424024752,1780554640000,-500.0,0.00013698,2]
[424024753,1780554640000,-512.05672816,0.00013698,2]
[424024759,1780554640000,-500.0,0.00013698,2]
[424024770,1780554640000,-500.0,0.00013698,2]
[424024765,1780554640000,-500.0,0.00013698,2]
[424024766,1780554640000,-500.0,0.00013698,2]
[424024767,1780554640000,-500.0,0.00013698,2]
[424024771,1780554640000,-500.0,0.00013698,2]
[424024768,1780554640000,-500.0,0.00013698,2]
[424024773,1780554640000,-500.0,0.00013698,2]
[424024762,1780554640000,-501.91561723,0.00013698,2]
[424024772,1780554640000,-500.0,0.00013698,2]
[424024775,1780554640000,-500.0,0.00013698,2]
[424024749,1780554640000,-501.82477352,0.00013698,2]
[424024782,1780554640000,-500.0,0.00013698,2]
[424024764,1780554640000,-500.0,0.00013698,2]
[424024748,1780554640000,-500.0,0.00013698,2]
[424024730,1780554640000,-500.0,0.00013698,2]
[424024746,1780554640000,-500.0,0.00013698,2]
[424024774,1780554640000,-500.0,0.00013698,2]
[424024717,1780554640000,-500.0,0.00013698,2]
[424024718,1780554640000,-500.0,0.00013698,2]
[424024722,1780554640000,-501.80990217,0.00013698,2]
[424024721,1780554640000,-500.0,0.00013698,2]
[424024727,1780554640000,-500.0,0.00013698,2]
[424024725,1780554640000,-502.07412321,0.00013698,2]
[424024719,1780554640000,-283.12660376,0.00013698,2]
[424024723,1780554640000,-500.0,0.00013698,2]
[424024728,1780554640000,-500.0,0.00013698,2]
[424024724,1780554640000,-501.8454659,0.00013698,2]
[424024737,1780554640000,-500.0,0.00013698,2]
[424024729,1780554640000,-500.0,0.00013698,2]
[424024739,1780554640000,-500.0,0.00013698,2]
[424024736,1780554640000,-500.0,0.00013698,2]
[424024734,1780554640000,-505.87443944,0.00013698,2]
[424024735,1780554640000,-500.0,0.00013698,2]
[424024731,1780554640000,-500.0,0.00013698,2]
[424024733,1780554640000,-500.0,0.00013698,2]
[424024740,1780554640000,-501.60951739,0.00013698,2]
[424024742,1780554640000,-503.41350608,0.00013698,2]
[424024745,1780554640000,-500.0,0.00013698,2]
[424024741,1780554640000,-510.28983737,0.00013698,2]
[424024743,1780554640000,-500.0,0.00013698,2]
[424024783,1780554640000,-500.0,0.00013698,2]
[424024784,1780554640000,-500.0,0.00013698,2]
[424024824,1780554640000,-513.25387727,0.00013698,2]
[424024806,1780554640000,-500.0,0.00013698,2]
[424024805,1780554640000,-508.36824893,0.00013698,2]
[424024815,1780554640000,-500.0,0.00013698,2]
[424024817,1780554640000,-327.14053199,0.00013698,2]
[424024825,1780554640000,-502.69529921,0.00013698,2]
[424024819,1780554640000,-500.0,0.00013698,2]
[424024821,1780554640000,-500.0,0.00013698,2]
[424024829,1780554640000,-500.0,0.00013698,2]
[424024823,1780554640000,-500.0,0.00013698,2]
[424024827,1780554640000,-500.0,0.00013698,2]
[424024816,1780554640000,-500.0,0.00013698,2]
[424024807,1780554640000,-500.0,0.00013698,2]
[424024828,1780554640000,-500.0,0.00013698,2]
[424024830,1780554640000,-500.0,0.00013698,2]
[424024832,1780554640000,-500.0,0.00013698,2]
[424024838,1780554640000,-501.32826704,0.00013698,2]
[424024839,1780554640000,-257.23241976,0.00013698,2]